Cogmind - Beta 11 @@@ ROGUE MODE // 2022.04.20 @ 11:09:31 Player: Azken Zutik Result: Self-destructed Performance ------------- Evolutions (0) 0 Regions Visited (4) 800 Robots Destroyed (293) 1465 Value Destroyed (3076) 3076 Prototype IDs (41) 820 Alien Tech Used (0) 0 Bonus (1927) 1927 TOTAL SCORE: 8088 Bonus ------- High Alert Combat Kills 327 Follower Combat Kills 1300 Aligned with FarCom 300 Cogmind --------- Core Integrity 122/250 Matter 300/300 Energy 310/310 System Corruption 0% Temperature Cool (0) Movement Treading (240) Ox1 Location -9/Mines Parts ------- > --- POWER (1) -------- Reinforced Fission Core > --- PROPULSION (2) --- Light Treads Light Treads > --- UTILITY (2) ------ Large Storage Unit Hardened Light Armor Plating > --- WEAPON (2) ------- Light Assault Rifle Light Assault Rifle > --- INVENTORY (15) --- Light Ion Engine Light Treads Light Treads Superbattery (1500) High-capacity Matter Pod (200) Advanced Weapon Cycler Light Armor Plating Light Armor Plating Light Armor Plating Thief Drone Bay (1/3) 8R-AWN's Boregun Slug Cannon Grenade Launcher Datajack Katana Peak State ------------ > --- POWER ------------ Reinforced Fission Core > --- PROPULSION ------- Light Treads Light Treads > --- UTILITY ---------- Large Storage Unit Armor Integrity Analyzer > --- WEAPON ----------- 8R-AWN's Boregun 8R-AWN's Boregun > --- INVENTORY -------- Light Treads Light Treads Advanced Weapon Cycler Light Armor Plating Light Armor Plating Light Armor Plating Thief Drone Bay Light Assault Rifle Light Assault Rifle Slug Cannon Mining Claw Deploy-a-Sentry Deploy-a-Sentry Deploy-a-Sentry [Rating: 37] Favorites ----------- Power Reinforced Fission Core Engine Light Ion Engine Power Core Reinforced Fission Core Propulsion Light Treads Treads Light Treads Leg Aluminum Leg Utility Large Storage Unit Device Improved Terrain Scanner Storage Large Storage Unit Processor Armor Integrity Analyzer Protection Hardened Light Armor Plating Weapon Light Assault Rifle Energy Gun Medium Laser Ballistic Gun Light Assault Rifle Launcher Grenade Launcher Special Weapon Mining Laser Slashing Weapon Katana Special Melee Weapon Datajack Build | -11 -10 -10 -10 -9 ------- Run | Scr Mat Min Exi Min Slots Evolved . | . . . . . Power . | . . . . . Propulsion . | . . . . . Utility . | . . . . . Weapon . | . . . . . Parts Attached 189 | 4 21 13 17 134 Power 4 | . 1 2 1 . Engine 3 | . 1 2 . . Core 1 | . . . 1 . Reactor . | . . . . . Propulsion 7 | 2 2 . 1 2 Treads 7 | 2 2 . 1 2 Leg . | . . . . . Wheel . | . . . . . Hover . | . . . . . Flight . | . . . . . Utility 18 | 1 5 3 5 4 Device 4 | 1 1 1 1 . Storage 3 | . 2 . . 1 Processor 1 | . . . 1 . Hackware . | . . . . . Protection 10 | . 2 2 3 3 Artifact . | . . . . . Weapon 160 | 1 13 8 10 128 Energy Gun 2 | 1 1 . . . Energy Cannon . | . . . . . Ballistic Gun 82 | . 5 5 6 66 Ballistic Cannon . | . . . . . Launcher 64 | . 4 3 1 56 Special Weapon 1 | . 1 . . . Impact Weapon . | . . . . . Slashing Weapon 8 | . 2 . 2 4 Piercing Weapon . | . . . . . Special Melee Weapon 3 | . . . 1 2 Unidentified Prototypes 1 | . . 1 . . Parts Lost 3 | . . 1 2 . Power 1 | . . . 1 . Propulsion . | . . . . . Utility 1 | . . 1 . . Weapon 1 | . . . 1 . Highest Loss Streak 1 | . . 1 1 . To Critical Strikes . | . . . . . Average Slot Usage (%) 99 | . 99 100 99 99 Engine 3 | . 14 14 7 . Core 10 | . . . 6 14 Treads 27 | . 27 28 28 28 Storage 14 | . 14 14 14 14 Protection 12 | . 6 13 8 13 Ballistic Gun 22 | . 8 24 19 25 Launcher 1 | . 3 3 . . Slashing Weapon 1 | . 2 . 4 1 Naked Turns . | . . . . . Heaviest Build 56 | 13 31 31 56 53 Greatest Support 40 | 40 40 40 40 40 Greatest Overweight (x) 1 | . . . 1 1 Average Overweight (x) . | . . . . 1 Largest Inventory Capacity 15 | 8 15 15 15 15 Average Capacity 14 | 8 11 15 15 15 Most Carried 15 | 8 15 15 15 15 Average Carried 13 | 6 10 14 13 13 Final Capacity 15 | 8 15 15 15 15 Final Carried 15 | 7 15 15 15 15 Class Distribution -------------------- 100% | Mutant Dominant Class ---------------- Mutant | -10/Materials Mutant | -10/Mines Mutant | -10/Exiles Mutant | -9/Mines Resources | -11 -10 -10 -10 -9 ----------- Run | Scr Mat Min Exi Min Matter Collected 10760 | 361 2714 807 647 6231 Remotely . | . . . . . Salvage Created 13619 | 352 3224 3009 134 6900 Parts 895 | 28 231 95 4 537 Haulers Intercepted 2 | . 2 . . . Recyclers Shooed 26 | 1 8 9 . 8 Parts Field Recycled . | . . . . . Retrieved Matter . | . . . . . Parts Self-Destructed . | . . . . . Prevented . | . . . . . Kills | -11 -10 -10 -10 -9 ------- Run | Scr Mat Min Exi Min Combat Hostiles Destroyed 56 | . 22 8 4 22 Melee 1 | . . . 1 . Guns 12 | . 3 2 1 6 AOE 43 | . 19 6 2 16 Classes Destroyed 13 | 3 6 1 . 3 Worker 148 | 4 36 24 . 84 Builder 157 | . 21 21 . 115 Tunneler 64 | 9 5 20 . 30 Hauler 2 | . 2 . . . Recycler 68 | 1 21 20 . 26 Operator 2 | . 2 . . . Watcher 3 | . 3 . . . Swarmer 6 | . 6 . . . Grunt 36 | . 16 2 . 18 Brawler 1 | . . . . 1 Duelist 1 | . . . . 1 Sentry 2 | . . . . 2 Assembled 9 | . . 6 3 . Best Kill Streak 7 | 4 7 6 3 4 Combat Bots Only 3 | . 3 3 3 2 Max Kills in Single Turn 2 | 1 2 2 1 2 Gunslinging . | . . . . . Exploded 2 | . 2 2 1 1 Melee 1 | . . . 1 . Uniques/NPCs Destroyed 1 | . . . 1 . 8R-AWN (-10/Exiles) Combat | -11 -10 -10 -10 -9 -------- Run | Scr Mat Min Exi Min Damage Taken 1325 | . 264 261 355 445 Core 128 | . 49 21 39 19 Absorbed by Shields 24 | . . . . 24 Regen/Repaired (Parts) 116 | . 116 . . . Core Remaining (%) 100 | 100 . . . . Volleys Fired 1487 | 37 324 281 37 808 Largest 2 | 2 2 2 2 2 Hottest 100 | 100 100 40 60 50 Shots Fired 2695 | 74 534 547 68 1472 Gun 2448 | 74 426 532 64 1352 Cannon . | . . . . . Launcher 241 | . 102 15 4 120 Special 6 | . 6 . . . Kinetic 2366 | . 418 532 64 1352 Thermal 88 | 74 14 . . . Explosive 241 | . 102 15 4 120 Electromagnetic . | . . . . . Robot Hit Streak 22 | 9 21 12 5 22 Robot Miss Streak 10 | 5 5 4 10 5 Penetration Max 1 | . . . . 1 Secondary Targets . | . . . . . Shots Hit Robots 1576 | 42 280 338 38 878 Core Hits 847 | 15 189 175 19 449 Critical Kills 11 | . 2 1 . 8 Critical Parts Destroyed 18 | . 3 . 3 12 Critical Strikes 32 | 1 6 1 4 20 Burn 2 | 1 1 . . . Destroy 30 | . 5 1 4 20 Melee Attacks 62 | . 14 . 18 30 Impact . | . . . . . Slashing 56 | . 14 . 14 28 Piercing . | . . . . . Sneak Attacks 25 | . 4 . 4 17 Combat Hostiles . | . . . . . Follow-up Attacks . | . . . . . Damage Inflicted 19708 | 555 4647 3151 595 10760 Guns 12866 | 555 2204 2722 287 7098 Cannons . | . . . . . Explosions 4653 | . 2201 384 119 1949 Melee 1351 | . 192 . 189 970 Ramming 838 | . 50 45 . 743 Kinetic 12225 | . 2118 2722 287 7098 Thermal 641 | 555 86 . . . Explosive 4653 | . 2201 384 119 1949 Electromagnetic . | . . . . . Impact . | . . . . . Slashing 1351 | . 192 . 189 970 Piercing . | . . . . . Highest Corruption . | . . . . . Average Corruption . | . . . . . Corruption Purged . | . . . . . Corruption Blocked . | . . . . . Overload Shots . | . . . . . Overflow Damage 371 | . 22 . . 349 Projectiles . | . . . . . Explosions 33 | . 22 . . 11 Melee 338 | . . . . 338 Knockbacks 9 | . . 1 . 8 Impact 9 | . . 1 . 8 Kinetic . | . . . . . Secondary . | . . . . . Self-Inflicted Damage 117 | . 40 8 53 16 Shots 7 | . 2 1 3 1 Rammed 230 | . 10 6 . 214 Targets Rammed 259 | . 11 7 . 241 Kicked . | . . . . . Crushed 29 | . 1 1 . 27 Highest Temperature 351 | 351 156 14 110 284 Average Temperature 37 | 120 11 6 37 41 Received Heat Transfer 277 | . 75 24 20 158 Effects 5 | 2 . . . 3 Energy Bleed 4 | 2 . . . 2 Interference 1 | . . . . 1 Siege Activations . | . . . . . Robots Corrupted . | . . . . . Combat Hostiles . | . . . . . Parts Fried . | . . . . . Impact Corruptions . | . . . . . Robots Melted . | . . . . . Combat Hostiles . | . . . . . Parts Melted 3 | 2 1 . . . Heat Transferred 2035 | 1702 333 . . . Parts Sabotaged . | . . . . . Parts Stolen . | . . . . . Parts Stripped . | . . . . . Power Chain Reactions . | . . . . . Missiles Intercepted . | . . . . . Alert | -11 -10 -10 -10 -9 ------- Run | Scr Mat Min Exi Min Peak Influence 1931 | 70 1931 621 . 238 Initial 496 | . . 496 . . Average 138 | 37 628 368 . 30 Maximum Alert Level 5 | . 5 2 . 1 Low Security (%) 82 | 100 50 . . 98 Level 1 7 | . 1 61 . 1 Level 2 3 | . 2 38 . . Level 3 1 | . 14 . . . Level 4 2 | . 17 . . . Level 5 1 | . 13 . . . High Security . | . . . . . Max Security . | . . . . . Squads Dispatched 56 | . 8 . . 48 Investigation 6 | . 6 . . . Extermination . | . . . . . Reinforcement 50 | . 2 . . 48 Assault . | . . . . . Garrison . | . . . . . Intercept . | . . . . . Searches Triggered . | . . . . . Construction Impeded 48 | . . . . 48 Haulers Reinforced . | . . . . . Active Scanning Responses . | . . . . . Cargo Convoy Interrupts . | . . . . . Stealth | -11 -10 -10 -10 -9 --------- Run | Scr Mat Min Exi Min Distress Signals 2 | . 1 1 . . Communications Jammed . | . . . . . Distress Signals . | . . . . . Times Spotted 74 | . 34 8 6 26 Peak Tracking Total 9 | . 4 3 9 2 Tactical Retreats 2 | . . . 2 . Traps | -11 -10 -10 -10 -9 ------- Run | Scr Mat Min Exi Min Traps Triggered 3 | . 2 . . 1 Indirectly . | . . . . . Trap Hack Attempts . | . . . . . Triggered . | . . . . . Disarmed . | . . . . . Reprogrammed . | . . . . . Reused . | . . . . . Traps Extracted . | . . . . . Installed 1 | . . . . 1 Triggered . | . . . . . Most Traps Carried 1 | . . . . 1 Exploded 3 | . . . 3 . Machines | -11 -10 -10 -10 -9 ---------- Run | Scr Mat Min Exi Min Machines Disabled 50 | . 33 4 7 6 Max in Single Turn 3 | . 2 3 3 3 Machines Sabotaged . | . . . . . Garrisons Compromised . | . . . . . Overloaded Fab Kills . | . . . . . Hacking | -11 -10 -10 -10 -9 --------- Run | Scr Mat Min Exi Min Machines Accessed 10 | . 7 1 2 . Terminals 4 | . 4 . . . Fabricators . | . . . . . Repair Stations 1 | . 1 . . . Recycling Units 2 | . 2 . . . Scanalyzers . | . . . . . Garrison Access . | . . . . . Total Hacks 34 | . 31 1 2 . Successful 27 | . 24 1 2 . Failed 6 | . 6 . . . Catastrophic . | . . . . . Database Lockouts 1 | . 1 . . . Manual 15 | . 14 . 1 . Terminals 17 | . 17 . . . Fabricators . | . . . . . Repair Stations 12 | . 12 . . . Recycling Units 2 | . 2 . . . Scanalyzers . | . . . . . Garrison Access . | . . . . . Terminal Hacks 9 | . 6 1 2 . Record 1 | . . . 1 . Robot Schematic 1 | . 1 . . . Prototype ID Bank 1 | . 1 . . . Open Door 1 | . . 1 . . Branch Access Points 1 | . 1 . . . Terminal Index 1 | . 1 . . . Locate Traps 1 | . 1 . . . Hauler Manifests 1 | . 1 . . . EX-Prototype ID Bank 1 | . . . 1 . Fabricator Hacks . | . . . . . Repair Station Hacks 10 | . 10 . . . Scan Component 6 | . 6 . . . Repair 4 | . 4 . . . Recycling Unit Hacks . | . . . . . Scanalyzer . | . . . . . Garrison Access Hacks . | . . . . . Unauthorized Hacks 8 | . 8 . . . Terminals 6 | . 6 . . . Botnet 4 | . 4 . . . Sabotage 1 | . 1 . . . Search 1 | . 1 . . . Fabricators . | . . . . . Repair Stations . | . . . . . Recycling Units 2 | . 2 . . . Tunnel 2 | . 2 . . . Scanalyzers . | . . . . . Garrison Access . | . . . . . Data Cores Recovered . | . . . . . Used . | . . . . . Hacking Detections 5 | . 5 . . . Full Trace Events 2 | . 2 . . . Feedback Events . | . . . . . Feedback Blocked . | . . . . . Robot Schematics Acquired 1 | . 1 . . . Robots Built . | . . . . . Authchips . | . . . . . Time . | . . . . . Total Robot Build Rating . | . . . . . Part Schematics Acquired . | . . . . . Parts Built . | . . . . . Authchips . | . . . . . Time . | . . . . . Total Part Build Rating . | . . . . . Parts Repaired 4 | . 4 . . . Time 104 | . 104 . . . Parts Recycled . | . . . . . Recycled Matter . | . . . . . Retrieved Matter . | . . . . . Retrieved Components . | . . . . . Parts Scanalyzed . | . . . . . Part Schematics Acquired . | . . . . . Parts Damaged . | . . . . . Bothacking | -11 -10 -10 -10 -9 ------------ Run | Scr Mat Min Exi Min Used RIF Installer . | . . . . . Robots Hacked 5 | . . . 4 1 Non-combat 3 | . . . 3 . Combat 2 | . . . 1 1 Robot Hacks Applied 6 | . . . 4 2 parse_system 6 | . . . 4 2 Relay Couplers Released . | . . . . . Fabnet Peak Effective % . | . . . . . Robots Rewired . | . . . . . Allies Hacked . | . . . . . Hacks Repelled . | . . . . . Allies | -11 -10 -10 -10 -9 -------- Run | Scr Mat Min Exi Min Total Allies 1 | . . . . 1 Largest Group 1 | . . . . 1 Highest-Rated Group 31 | . . . . 31 Highest-Rated Ally 31 | . . . . 31 Total Orders 6 | . . . 6 . STAY 2 | . . . 2 . FOLLOW 1 | . . . 1 . RETURN 3 | . . . 3 . Ally Attacks 142 | . . . 30 112 Total Damage 5804 | . . . 158 5646 Kills 52 | . . . . 52 Allies Corrupted . | . . . . . Allies Melted . | . . . . . Turrets Deployed 3 | . . . . 3 Intel | -11 -10 -10 -10 -9 ------- Run | Scr Mat Min Exi Min Robot Analysis Total . | . . . . . Derelict Logs Recovered 5 | . . 3 . 2 Drone Launches 9 | . . . 9 . Drone Recoveries 7 | . . . 7 . Exploration | -11 -10 -10 -10 -9 ------------- Run | Scr Mat Min Exi Min Turns Passed 79419 | 454 9818 7042 3401 58704 Spaces Moved 13235 | 127 1727 1676 1168 8537 Core . | . . . . . Treads 13151 | 43 1727 1676 1168 8537 Legs 84 | 84 . . . . Wheels . | . . . . . Hover . | . . . . . Flight . | . . . . . Fastest Speed 120 | 120 160 160 160 240 Average Speed 212 | 133 160 160 171 240 Slowest Speed 240 | 160 160 160 240 240 Overloaded Moves . | . . . . . Propulsion Burnouts . | . . . . . Robots Hopped 12 | . . . . 12 Cave-ins Triggered . | . . . . . Exploration Rate (%) 78 | 4 98 100 88 102 Regions Visited 4 Branch Regions 3 Pre-discovered Areas 4 | . 2 1 1 . Known Exits Taken 1 | . 1 . . . Unknown Exits Taken 3 | 1 . 1 1 . Scrap Searched 3 | . . 2 . 1 Spaces Dug 220 | . 35 6 . 179 Terrain Destroyed 1390 | . 518 73 25 774 Melee 9 | . . . . 9 Projectile 25 | . 6 . 6 13 AOE 1354 | . 512 73 18 751 Terrain Rammed . | . . . . . Walls Destroyed . | . . . . . Machines Disabled . | . . . . . Actions | -11 -10 -10 -10 -9 --------- Run | Scr Mat Min Exi Min Total 61865 | 337 8293 5588 2476 45171 Wait 46228 | 163 6157 3602 1206 35100 Move 13207 | 126 1726 1675 1167 8513 Hop 12 | . . . . 12 Pick Up 208 | 4 20 5 15 164 Fast Attach 9 | 1 6 1 . 1 Attach 7 | . . 1 6 . Detach 1 | . 1 . . . Swap 173 | 3 15 11 11 133 Drop 210 | 3 19 5 16 167 Fire 1487 | 37 324 281 37 808 Melee 62 | . 14 . 18 30 Ram . | . . . . . Kick . | . . . . . Crush 259 | . 11 7 . 241 Escape Stasis 1 | . . . . 1 Rewire . | . . . . . Trap 1 | . . . . 1 Miscellaneous . | . . . . . Route ------- -11/Scrapyard -10/Materials (discovered 4 exits: [*Mat x3] / *Min) -10/Mines (discovered 3 exits: [*Mat x2] / *Exi) -10/Exiles -9/Mines (discovered 2 exits: *Mat x2) History --------- Turn | Location | Event 57 | -11/Scrapyard | Discovered new exit (range 2) 455 | -11/Scrapyard | Entered Materials 456 | -10/Materials | Build established: Mutant 5522 | -10/Materials | Discovered new exit (range 15) 5624 | -10/Materials | Central database locked down 5992 | -10/Materials | Discovered new exit (range 4) 6593 | -10/Materials | Discovered new exit (range 14) 6865 | -10/Materials | Identified exit to Mines 6927 | -10/Materials | Discovered new exit (range 15) 8391 | -10/Materials | Repaired Grenade Launcher 10150 | -10/Materials | Repaired Lgt. Assault Rifle 10176 | -10/Materials | Repaired Lgt. Assault Rifle 10203 | -10/Materials | Repaired Lgt. Treads 10273 | -10/Materials | Entered Mines 10298 | -10/Mines | Assembled infested the area 10303 | -10/Mines | Assisted by a Guerilla fighting off Assembled 10944 | -10/Mines | Found the Drone Emporium 10956 | -10/Mines | Found Prototype Device 10956 | -10/Mines | Identified Thief Drone Bay 11441 | -10/Mines | Learned location of Mines (-9) 11696 | -10/Mines | Discovered new exit (range 11) 11783 | -10/Mines | A weapon hastily lodged in a ceiling crevice suddenly fell to the ground 11798 | -10/Mines | Learned location of 1 exit from Materials 11983 | -10/Mines | Learned Materials emergency access door positions 12026 | -10/Mines | Deemed a non-threat by the Exiles lab entrance 12028 | -10/Mines | Discovered new exit (range 5) 12102 | -10/Mines | Discovered new exit (range 12) 17315 | -10/Mines | Entered Exiles 17355 | -10/Exiles | Met 8R-AWN 17381 | -10/Exiles | Met EX-HEX 17443 | -10/Exiles | Met EX-DEC 17459 | -10/Exiles | Learned location of Zion (-6) 17523 | -10/Exiles | Visited The Gauntlet 17791 | -10/Exiles | Discovered new exit (range 12) 18465 | -10/Exiles | Met EX-BIN 18494 | -10/Exiles | Aligned with FarCom system 18495 | -10/Exiles | Given EX-Vault access code 18542 | -10/Exiles | Opened EX-Vault 18553 | -10/Exiles | Found Deploy-a-Sentry 18555 | -10/Exiles | Found Deploy-a-Sentry 18558 | -10/Exiles | Found Deploy-a-Sentry 18568 | -10/Exiles | Found Superbattery 18767 | -10/Exiles | Warned to stay clear of 0b10 Research branches 19062 | -10/Exiles | Attacked by the Exiles 19228 | -10/Exiles | Found 8R-AWN's Boregun 19230 | -10/Exiles | Found 8R-AWN's Boregun 20521 | -10/Exiles | Destroyed 8R-AWN 20716 | -10/Exiles | Stole two prototypes: Superbattery, Deploy-a-Sentry 20716 | -10/Exiles | Entered Mines 21786 | -9/Mines | Discovered new exit (range 11) 21869 | -9/Mines | Found a hidden stash of uninstalled traps 22552 | -9/Mines | Identified exit to Materials 22841 | -9/Mines | Received a Mining Laser from a helpful Derelict 41847 | -9/Mines | DAS Turret deployed 41850 | -9/Mines | DAS Turret deployed 41852 | -9/Mines | DAS Turret deployed 46465 | -9/Mines | Core integrity fell below 50% 79420 | -9/Mines | Self-destructed Last Messages --------------- 79021_ ALERT: Construction progress impeded, dispatching reinforcements to local area. 79044_ U-05 Engineer lays Concrete. 79046_ U-05 Engineer builds a Wall. 79061_ U-05 Engineer lays Concrete. 79066_ U-05 Engineer builds a Wall. 79078_ U-05 Engineer lays Concrete. 79080_ U-05 Engineer builds a Wall. 79117_ G-34 Mercenary knocked back. 79118_ U-05 Engineer builds a Wall. 79122_ G-34 Mercenary destroyed. 79123_ K-01 Serf collects debris. 79124_ G-34 Mercenary destroyed. 79128_ K-01 Serf collects debris. 79147_ Extracted 48 matter. 79149_ Extracted 32 matter. 79238_ Slammed into K-01 Serf. 79243_ Slammed into R-06 Scavenger. 79250_ R-06 Scavenger knocked back. 79267_ Slammed into K-01 Serf. Map ----- +----------------------------------------------------+ | | | | | | | | | | | | | | | | | | | | | | | | | | | ???????????????????????????????? | | ????????????????????????####???? | | ???????????????????????## ##?? | | ??????????????????????## ##? | | ??????????????????????# ! ## | | ??????????????????????# # | | ???????????####???###### # | | ??????????## ##?## ## ## | | ???????#### ### ## !## | | ??????## ### # | | ??????# ### | | ??????# ## ### | | ??????#@ #### #?# | | ??????####?## ##?# | | ???????????# #### ## | | ??????????# ## ##! #### | | ??????????# #### #??# | | ??????????#####??# #??# | | ?????????????????# #?# | | ?????????????????## #?## | | ??????????????????## #??# | | ?#######???????????## #??# | | ?# """ #????????????# ##??# | | ?# "" #####????????## ###???# | | ?# """ #?????????####?????# | | ?# #??????????????????# | | ?# ### ????????????####### | | ?# < # ????????????# | | ?# ### #??######????# | | ?###### #### #????# ####% | | ???#### #### ##???# #??# | | ???# # # ## ##### #??# | | ???# # ### #??# | | ???### ## = #########??# | | ????## #????????## | | ????## ###?????????? | | ???## # #?????????? | +----------------------------------------------------+ Best States ------------- Heat Dissipation 25 Energy Generation 19 Energy Capacity 310 Matter Stores 300 Matter Capacity 300 Sight Range 16 Terrain Scan Range 16 Terrain Scan Density 10 Armor Coverage 150 Evasion (%) 55 Armor Integrity Analysis 30 Recoil Reduction 2 Item Schematics ----------------- None Robot Schematics ------------------ G-34 Mercenary | -10/Materials | Hacked Fabricated ------------ Nothing Alien Tech Used ----------------- None Achievements -------------- None Challenges ------------ None Game ------ Seed AntimissileLinkedThrower Manual? 0 Play Time 03:04:21 Cumulative 300.7 hours Start 2022.04.17 @ 13:53:49 End 2022.04.20 @ 11:09:31 Sessions 11 Manual Loads 0 Difficulty Rogue Special Mode None Game No. 87 Rogue 87 Adventurer 0 Explorer 0 Win Type - Total 6 Types 3/1/0/0/2/0/0/0/0 Lore% 59 Gallery% 73 Achievement% 66 Wizard Run 0 Options --------- ASCII 0 Keyboard 0 Movement Arrows Keybinds 0 Fullscreen 0 Font 28/SmallcapsGlow Map View 72x54 Tactical HUD 1 Map Filters NONE Filters NONE Steam 1 RUN: 81f52bd9-3ee3-46a4-9dd2-a0510476c0e8